fUSD/lending_fUSD_20240612
["ID","MTS","AMOUNT","RATE_DAILY","PERIOD"]
[329276799,1718211047820,-157.97328597,0.00024702,2]
[329276801,1718211047831,-500.0,0.00024708,2]
[329276803,1718211047842,-225.49980945,0.00024708,2]
[329276805,1718211047853,-242.65,0.00024708,2]
[329276807,1718211047863,-389.00984236,0.00024708,2]
[329276809,1718211047873,-500.0,0.00024708,2]
[329276811,1718211047886,-500.0,0.00024708,2]
[329276813,1718211047899,-500.0,0.00024708,2]
[329276815,1718211047913,-500.0,0.00024708,2]
[329276818,1718211047929,-500.0,0.00024708,2]
[329276819,1718211047939,-500.0,0.00024708,2]
[329276822,1718211047950,-500.0,0.00024708,2]
[329276823,1718211047959,-500.0,0.00024708,2]
[329276825,1718211047970,-500.0,0.00024708,2]
[329276827,1718211047980,-505.57181642,0.00024708,2]
[329276829,1718211047992,-500.0,0.00024708,2]
[329276831,1718211048002,-500.0,0.00024708,2]
[329276833,1718211048012,-500.0,0.00024708,2]
[329276835,1718211048022,-242.2449,0.00024708,2]
[329276838,1718211048033,-500.0,0.00024708,2]
[329276839,1718211048043,-500.0,0.00024708,2]
[329276841,1718211048053,-500.0,0.00024708,2]
[329276843,1718211048064,-500.0,0.00024708,2]
[329276845,1718211048075,-500.0,0.00024708,2]
[329276847,1718211048085,-500.0,0.00024708,2]
[329276850,1718211048096,-500.0,0.00024708,2]
[329276852,1718211048107,-500.0,0.00024708,2]
[329276854,1718211048117,-500.0,0.00024708,2]
[329276856,1718211048128,-633.60629861,0.00024708,2]
[329276858,1718211048139,-500.0,0.00024708,2]
[329276859,1718211048149,-500.0,0.00024708,2]
[329276862,1718211048161,-500.0,0.00024708,2]
[329276864,1718211048172,-500.0,0.00024708,2]
[329276865,1718211048184,-500.0,0.00024708,2]
[329276867,1718211048194,-500.0,0.00024708,2]
[329276869,1718211048204,-500.0,0.00024708,2]
[329276871,1718211048214,-500.0,0.00024708,2]
[329276873,1718211048225,-500.0,0.00024708,2]
[329276876,1718211048236,-500.0,0.00024708,2]
[329276878,1718211048246,-500.0,0.00024708,2]
[329276880,1718211048256,-500.0,0.00024708,2]
[329276882,1718211048267,-500.0,0.00024708,2]
[329276884,1718211048277,-935.59,0.00024708,2]
[329276886,1718211048288,-500.0,0.00024708,2]
[329276888,1718211048300,-500.0,0.00024708,2]
[329276890,1718211048311,-500.0,0.00024708,2]
[329276892,1718211048322,-500.0,0.00024708,2]
[329276894,1718211048332,-500.0,0.00024708,2]
[329276896,1718211048342,-500.0,0.00024708,2]
[329276898,1718211048352,-500.0,0.00024708,2]
[329276900,1718211048362,-616.95,0.00024708,2]
[329276902,1718211048372,-500.0,0.00024708,2]
[329276904,1718211048382,-500.0,0.00024708,2]
[329276906,1718211048392,-500.0,0.00024708,2]
[329276908,1718211048401,-570.80246887,0.00024708,2]
[329276910,1718211048412,-500.0,0.00024708,2]
[329276912,1718211048422,-500.0,0.00024708,2]
[329276914,1718211048432,-500.0,0.00024708,2]
[329276916,1718211048442,-500.0,0.00024708,2]
[329276917,1718211048454,-176.57,0.00024708,2]
[329276920,1718211048470,-500.0,0.00024708,2]
[329276922,1718211048481,-500.0,0.00024708,2]
[329276924,1718211048511,-500.0,0.00024708,2]
[329276926,1718211048522,-286.85673258,0.00024708,2]
[329276928,1718211048534,-500.0,0.00024708,2]
[329276930,1718211048550,-629.19036839,0.00024708,2]
[329276932,1718211048563,-151.51,0.00024708,2]
[329276934,1718211048573,-500.0,0.00024708,2]
[329276937,1718211048587,-500.0,0.00024708,2]
[329276939,1718211048598,-500.0,0.00024708,2]
[329276941,1718211048608,-500.0,0.00024708,2]
[329276943,1718211048618,-500.0,0.00024708,2]
[329276945,1718211048628,-500.0,0.00024708,2]
[329276947,1718211048639,-500.0,0.00024708,2]
[329276949,1718211048649,-500.0,0.00024708,2]
[329276951,1718211048659,-500.0,0.00024708,2]
[329276953,1718211048670,-500.0,0.00024708,2]
[329276954,1718211048680,-500.0,0.00024708,2]
[329276956,1718211048690,-158.0184076,0.00024734,2]
[329276958,1718211048700,-500.0,0.00024739,2]
[329276960,1718211048711,-500.0,0.00024739,2]
[329276962,1718211048720,-155.19934622,0.00024751,2]
[329276964,1718211048732,-158.97201675,0.00024765,2]
[329276967,1718211048745,-2662.19495919,0.00024798,2]
[329276968,1718211048755,-2662.19495916,0.00024798,2]
[329276970,1718211048765,-2662.19495916,0.00024798,2]
[329276972,1718211048776,-2662.19495916,0.00024798,2]
[329276974,1718211048787,-2662.19495916,0.00024798,2]
[329276976,1718211048797,-2662.19495916,0.00024798,2]
[329276978,1718211048807,-467.86714765,0.00024799,2]
[329276980,1718211048818,-467.86714762,0.00024799,2]
[329276982,1718211048827,-467.86714762,0.00024799,2]
[329276984,1718211048839,-467.86714762,0.00024799,2]
[329276986,1718211048850,-467.86714762,0.00024799,2]
[329276988,1718211048860,-467.86714762,0.00024799,2]
[329276990,1718211048870,-151.71,0.00024835,2]
[329276992,1718211048881,-500.0,0.00024845,2]
[329276995,1718211048892,-192.72,0.00024845,2]
[329276997,1718211048902,-379.64727992,0.00024845,2]
[329276999,1718211048912,-500.0,0.00024845,2]
[329277001,1718211048922,-500.0,0.00024845,2]
[329277003,1718211048932,-500.0,0.00024845,2]
[329277005,1718211048943,-500.0,0.00024845,2]
[329277006,1718211048953,-500.0,0.00024845,2]
[329277008,1718211048963,-500.0,0.00024845,2]
[329277010,1718211048973,-543.15420443,0.00024845,2]
[329277012,1718211048985,-500.0,0.00024845,2]
[329277014,1718211048995,-500.0,0.00024845,2]
[329277016,1718211049005,-500.0,0.00024845,2]
[329277018,1718211049014,-500.0,0.00024845,2]
[329277020,1718211049024,-500.0,0.00024845,2]
[329277022,1718211049034,-935.59,0.00024845,2]
[329277024,1718211049045,-191.5213188,0.00024845,2]
[329277026,1718211049055,-455.46082091,0.00024845,2]
[329277028,1718211049065,-500.0,0.00024845,2]
[329277030,1718211049075,-500.0,0.00024845,2]
[329277032,1718211049086,-300.65,0.00024845,2]
[329277034,1718211049096,-500.0,0.00024845,2]
[329277036,1718211049107,-500.0,0.00024845,2]
[329277038,1718211049117,-168.34,0.00024845,2]
[329277040,1718211049128,-500.0,0.00024845,2]
[329277042,1718211049138,-619.44,0.00024845,2]
[329277044,1718211049147,-500.0,0.00024845,2]
[329277046,1718211049157,-598.95,0.00024845,2]
[329277048,1718211049167,-530.38943682,0.00024845,2]
[329277050,1718211049177,-500.0,0.00024845,2]
[329277052,1718211049187,-565.07,0.00024845,2]
[329277054,1718211049196,-500.0,0.00024845,2]
[329277056,1718211049206,-500.0,0.00024845,2]
[329277058,1718211049217,-500.0,0.00024845,2]
[329277060,1718211049228,-500.0,0.00024845,2]
[329277062,1718211049241,-263.1,0.00024845,2]
[329277064,1718211049251,-500.0,0.00024845,2]
[329277066,1718211049260,-500.0,0.00024876,2]
[329277068,1718211049270,-500.0,0.00024876,2]
[329277070,1718211049280,-153.39895737,0.00024878,2]
[329277072,1718211049290,-161.7109971,0.00024881,2]
[329277074,1718211049300,-6801.38955885,0.000249,2]
[329277076,1718211049309,-467.86714762,0.000249,2]
[329277078,1718211049320,-1002.92,0.000249,2]
[329277080,1718211049330,-2662.19495916,0.000249,2]
[329277082,1718211049340,-154.48133152,0.00024966,2]
[329277084,1718211049350,-170.11,0.00024982,2]
[329277086,1718211049360,-515.12,0.00024982,2]
[329277088,1718211049370,-357.15977928,0.00024982,2]
[329277090,1718211049380,-448.8629709,0.00024982,2]
[329277092,1718211049390,-500.0,0.00024982,2]
[329277094,1718211049400,-500.0,0.00024982,2]
[329277096,1718211049410,-935.59,0.00024982,2]
[329277098,1718211049420,-500.0,0.00024982,2]
[329277100,1718211049430,-500.0,0.00024982,2]
[329277102,1718211049440,-512.50858526,0.00024982,2]
[329277104,1718211049455,-584.2,0.00024982,2]
[329277106,1718211049466,-270.44,0.00024982,2]
[329277108,1718211049476,-593.0,0.00024982,2]
[329277110,1718211049494,-572.58,0.00024982,2]
[329277112,1718211049504,-586.70367198,0.00024982,2]
[329277114,1718211049514,-500.0,0.00024982,2]
[329277116,1718211049525,-500.0,0.00024982,2]
[329277118,1718211049537,-581.055793,0.00025,14]
[329277120,1718211049550,-930.99721425,0.00025,2]
[329277122,1718211049559,-155.0,0.00025,2]
[329277124,1718211049569,-155.0,0.00025,2]
[329277126,1718211049580,-14477.41742419,0.00025,2]
[329277128,1718211049590,-225.34445904,0.00025,2]
[329277130,1718211049599,-159.1918364,0.00025,2]
[329277132,1718211049609,-155.0,0.00025,2]
[329277134,1718211049619,-706.94373209,0.00025,2]
[329277136,1718211049630,-326.20621405,0.00025,2]
[329277138,1718211049640,-326.33400151,0.00025,2]
[329277140,1718211049649,-1350.0,0.00025,2]
[329277142,1718211049659,-209.90867952,0.00025,2]
[329277144,1718211049670,-500.0,0.00025013,2]
[329277146,1718211049681,-500.0,0.00025013,2]
[329277148,1718211049690,-197.64102241,0.00025109,2]
[329277150,1718211049700,-455.87,0.00025119,2]
[329277152,1718211049711,-500.0,0.00025119,2]
[329277154,1718211049721,-935.59,0.00025119,2]
[329277156,1718211049732,-500.0,0.00025119,2]
[329277158,1718211049744,-500.0,0.00025119,2]
[329277160,1718211049755,-500.0,0.00025119,2]
[329277162,1718211049770,-200.02,0.00025146,2]
[329277164,1718211049782,-163.03,0.0002515,2]
[329277166,1718211049792,-500.0,0.0002515,2]
[329277168,1718211049804,-161.7109971,0.0002516,2]
[329277170,1718211049814,-161.7109971,0.00025192,2]
[329277172,1718211049824,-158.0184076,0.00025227,2]
[329277174,1718211049834,-161.7109971,0.00025254,2]
[329277176,1718211049844,-423.73,0.00025256,2]
[329277178,1718211049854,-935.59,0.00025256,2]
[329277180,1718211049865,-500.0,0.00025256,2]
[329277182,1718211049875,-500.0,0.00025256,2]
[329277184,1718211049885,-500.0,0.00025287,2]
[329277186,1718211049896,-161.7109971,0.00025345,2]
[329277187,1718211049906,-161.7109971,0.00025352,2]
[329277189,1718211049916,-161.7109971,0.00025371,2]
[329277191,1718211049926,-935.59,0.00025393,2]
[329277194,1718211049937,-500.0,0.00025393,2]
[329277196,1718211049947,-500.0,0.00025393,2]
[329277198,1718211049957,-500.0,0.00025424,2]
[329277200,1718211049967,-1377.173,0.00025467,2]
[329277201,1718211049978,-1977.0,0.00025467,2]
[329277203,1718211049989,-935.59,0.0002553,2]
[329277205,1718211050000,-500.0,0.0002553,2]
[329277207,1718211050012,-500.0,0.0002553,2]
[329277209,1718211050022,-500.0,0.00025561,2]
[329277211,1718211050032,-350.62,0.00025629,2]
[329277213,1718211050043,-935.59,0.00025667,2]
[329277215,1718211050054,-500.0,0.00025667,2]
[329277217,1718211050064,-500.0,0.00025667,2]
[329277219,1718211050074,-500.0,0.00025698,2]
[329277221,1718211050085,-161.7109971,0.00025801,2]
[329277223,1718211050095,-935.59,0.00025804,2]
[329277225,1718211050104,-500.0,0.00025804,2]
[329277227,1718211050115,-500.0,0.00025804,2]
[329277229,1718211050125,-500.0,0.00025835,2]
[329277231,1718211050136,-153.62018196,0.00025843,2]
[329277233,1718211050146,-194.13,0.0002589,2]
[329277235,1718211050157,-151.0,0.00025912,2]
[329277237,1718211050167,-158.0184076,0.00025918,2]
[329277239,1718211050177,-935.59,0.00025941,2]
[329277241,1718211050187,-500.0,0.00025941,2]
[329277243,1718211050197,-500.0,0.00025941,2]
[329277245,1718211050207,-158.97201675,0.00025942,2]
[329277247,1718211050218,-500.0,0.00025972,2]
[329277249,1718211050228,-154.06645658,0.00025977,2]
[329277251,1718211050240,-1708.53,0.00026027,2]
[329277253,1718211050250,-1708.53,0.00026027,2]
[329277255,1718211050260,-1708.53,0.00026027,2]
[329277257,1718211050271,-1708.53,0.00026027,2]
[329277259,1718211050282,-1708.53,0.00026027,2]
[329277261,1718211050292,-1708.53,0.00026027,2]
[329277263,1718211050302,-1708.53,0.00026027,2]
[329277265,1718211050311,-1708.53,0.00026027,2]
[329277267,1718211050321,-1708.53,0.00026027,2]
[329277269,1718211050331,-1708.53,0.00026027,2]
[329277271,1718211050341,-1708.53,0.00026027,2]
[329277273,1718211050352,-158.97201675,0.00026076,2]
[329277275,1718211050362,-935.59,0.00026078,2]
[329277277,1718211050372,-500.0,0.00026078,2]
[329277279,1718211050382,-500.0,0.00026078,2]
[329277281,1718211050392,-1708.53,0.00026078,2]
[329277283,1718211050402,-161.7109971,0.00026095,2]
[329277285,1718211050413,-476.47,0.00026109,2]
[329277287,1718211050423,-158.0184076,0.00026138,2]
[329277289,1718211050433,-161.7109971,0.00026142,2]
[329277290,1718211050443,-181.77894766,0.00026156,2]
[329277291,1718211050458,-935.59,0.00026215,2]
[329277292,1718211050468,-500.0,0.00026215,2]
[329277293,1718211050480,-500.0,0.00026215,2]
[329277294,1718211050508,-1708.53,0.00026215,2]
[329277295,1718211050521,-161.7109971,0.000263,2]
[329277296,1718211050532,-2000.0,0.00026301,3]
[329277297,1718211050544,-935.59,0.00026352,2]
[329277298,1718211050555,-500.0,0.00026352,2]
[329277299,1718211050566,-500.0,0.00026352,2]
[329277300,1718211050576,-1708.53,0.00026352,2]
[329277301,1718211050586,-161.7109971,0.00026396,2]
[329277302,1718211050597,-161.7109971,0.0002642,2]
[329277304,1718211050607,-161.7109971,0.00026448,2]
[329277306,1718211050617,-155.00128118,0.00026469,2]
[329277308,1718211050627,-150.20717074,0.00026478,2]
[329277310,1718211050638,-158.97201675,0.00026488,2]
[329277312,1718211050648,-935.59,0.00026489,2]
[329277314,1718211050658,-500.0,0.00026489,2]
[329277316,1718211050667,-500.0,0.00026489,2]
[329277318,1718211050677,-1708.53,0.00026489,2]
[329277320,1718211050687,-1002.92,0.0002653,2]
[329277322,1718211050697,-467.86714762,0.00026567,2]
[329277324,1718211050707,-2662.19495916,0.00026567,2]
[329277326,1718211050719,-935.59,0.00026626,2]
[329277328,1718211050728,-500.0,0.00026626,2]
[329277330,1718211050740,-500.0,0.00026626,2]
[329277332,1718211050750,-1708.53,0.00026626,2]
[329277334,1718211050760,-158.97201675,0.00026709,2]
[329277336,1718211050770,-161.7109971,0.00026762,2]
[329277338,1718211050782,-935.59,0.00026763,2]
[329277340,1718211050792,-599.2411,0.00026763,2]
[329277342,1718211050801,-500.0,0.00026763,2]
[329277344,1718211050811,-1708.53,0.00026763,2]
[329277346,1718211050822,-154.48133153,0.00026845,2]
[329277348,1718211050833,-161.25760978,0.00026854,2]
[329277350,1718211050842,-156.2003238,0.00026864,2]
[329277352,1718211050853,-158.97201675,0.00026883,2]
[329277354,1718211050863,-161.7109971,0.00026888,2]
[329277356,1718211050873,-5060.07078307,0.000269,2]
[329277358,1718211050884,-935.59,0.000269,2]
[329277360,1718211050895,-500.0,0.000269,2]
[329277362,1718211050905,-1708.53,0.000269,2]
[329277364,1718211050915,-161.7109971,0.00026917,2]
[329277366,1718211050926,-158.01840761,0.00026939,2]
[329277368,1718211050937,-155.81775448,0.00026998,2]
[329277370,1718211050948,-17804.38443806,0.00027,2]
[329277372,1718211050958,-1400.0,0.00027,2]
[329277374,1718211050970,-1046.522645,0.00027,2]
[329277376,1718211050980,-935.59,0.00027037,2]
[329277378,1718211050993,-412.60428953,0.00027037,2]
[329277380,1718211051003,-1708.53,0.00027037,2]
[329277382,1718211051014,-154.06645658,0.00027055,2]
[329277384,1718211051025,-935.59,0.00027174,2]
[329277386,1718211051035,-1708.53,0.00027174,2]
[329277388,1718211051046,-2013.69130441,0.000272,2]
[329277390,1718211051056,-879.0123,0.00027235,2]
[329277392,1718211051066,-157.97328597,0.0002725,2]
[329277394,1718211051076,-161.7109971,0.00027305,2]
[329277396,1718211051086,-935.59,0.00027311,2]
[329277398,1718211051096,-1708.53,0.00027311,2]
[329277400,1718211051106,-169.89158533,0.0002736,2]
[329277402,1718211051115,-161.7109971,0.00027387,2]
[329277404,1718211051125,-500.0,0.00027397,2]
[329277406,1718211051135,-500.0,0.00027397,2]
[329277408,1718211051145,-500.0,0.00027397,2]
[329277410,1718211051155,-500.0,0.00027397,2]
[329277412,1718211051165,-500.0,0.00027397,2]
[329277414,1718211051176,-500.0,0.00027397,2]
[329277416,1718211051186,-500.0,0.00027397,2]
[329277418,1718211051198,-500.0,0.00027397,2]
[329277420,1718211051208,-500.0,0.00027397,2]
[329277435,1718211051357,-500.0,0.00027397,2]
[329277437,1718211051369,-322.80342247,0.00027397,2]
[329277439,1718211051380,-162.12,0.00027397,2]
[329277441,1718211051390,-150.0,0.00027397,2]
[329277443,1718211051400,-526.26,0.000274,2]
[329277445,1718211051411,-526.26,0.000274,2]
[329277447,1718211051421,-526.26,0.000274,2]
[329277449,1718211051434,-526.26,0.000274,2]
[329277451,1718211051448,-526.26,0.000274,2]
[329277453,1718211051461,-935.59,0.00027448,2]
[329277455,1718211051473,-1708.53,0.00027448,2]
[329277457,1718211051487,-161.7109971,0.0002747,2]
[329277458,1718211051507,-161.7109971,0.00027536,2]
[329277461,1718211051519,-935.59,0.00027585,2]
[329277463,1718211051534,-1708.53,0.00027585,2]
[329277464,1718211051547,-161.7109971,0.00027592,2]
[329277466,1718211051560,-150.0,0.00027604,2]
[329277468,1718211051574,-161.7109971,0.00027629,2]
[329277470,1718211051585,-154.0664566,0.00027719,2]
[329277472,1718211051597,-935.79000001,0.00027722,2]
[329277474,1718211051609,-1708.76745729,0.00027722,2]
[329277477,1718211051620,-350.62,0.00027893,2]
[329277479,1718211051632,-162.659,0.000279,2]
[329277481,1718211051643,-266.2781261,0.000279,2]
[329277482,1718211051653,-174.16174353,0.000279,2]
[329277485,1718211051665,-500.0,0.000279,10]
[329277486,1718211051675,-161.7109971,0.00027958,2]
[329277488,1718211051686,-3222.5722,0.00027982,2]
[329277490,1718211051697,-177.87415085,0.00028,2]
[329277492,1718211051708,-431.83275388,0.00028,2]
[329277494,1718211051719,-469.26225557,0.00028,2]
[329277496,1718211051730,-228.01600877,0.00028,2]
[329277498,1718211051744,-300.0,0.00028,2]
[329277500,1718211051756,-432.22396447,0.00028,2]
[329277502,1718211051766,-432.22396447,0.00028,2]
[329277504,1718211051777,-432.22396447,0.00028,2]
[329277506,1718211051788,-432.22396447,0.00028,2]
[329277508,1718211051800,-432.22396447,0.00028,2]
[329277510,1718211051811,-432.22396447,0.00028,2]
[329277512,1718211051822,-432.22396447,0.00028,2]
[329277514,1718211051833,-432.22396447,0.00028,2]
[329277516,1718211051844,-432.22396447,0.00028,2]
[329277518,1718211051855,-432.22396447,0.00028,2]
[329277520,1718211051866,-432.22396447,0.00028,2]
[329277523,1718211051877,-432.22396447,0.00028,2]
[329277525,1718211051888,-432.22396447,0.00028,2]
[329277527,1718211051899,-432.22396447,0.00028,2]
[329277529,1718211051910,-432.22396447,0.00028,2]
[329277531,1718211051922,-432.22396447,0.00028,2]
[329277533,1718211051932,-432.22396447,0.00028,2]
[329277535,1718211051942,-432.22396447,0.00028,2]
[329277537,1718211051953,-432.22396447,0.00028,2]
[329277539,1718211051964,-432.22396447,0.00028,2]
[329277541,1718211051976,-432.22396447,0.00028,2]
[329277542,1718211051988,-432.22396447,0.00028,2]
[329277545,1718211052000,-432.22396447,0.00028,2]
[329277546,1718211052010,-432.22396447,0.00028,2]
[329277549,1718211052022,-432.22396447,0.00028,2]
[329277551,1718211052033,-432.22396447,0.00028,2]
[329277553,1718211052044,-432.22396447,0.00028,2]
[329277555,1718211052055,-432.22396447,0.00028,2]
[329277557,1718211052066,-432.22396447,0.00028,2]
[329277559,1718211052077,-432.22396447,0.00028,2]
[329277561,1718211052089,-432.22396447,0.00028,2]
[329277563,1718211052100,-432.22396447,0.00028,2]
[329277565,1718211052110,-432.22396447,0.00028,2]
[329277567,1718211052121,-432.22396447,0.00028,2]
[329277569,1718211052132,-432.22396447,0.00028,2]
[329277571,1718211052142,-432.22396447,0.00028,2]
[329277573,1718211052154,-432.22396447,0.00028,2]
[329277575,1718211052164,-432.22396447,0.00028,2]
[329277576,1718211052176,-432.22396447,0.00028,2]
[329277578,1718211052187,-432.22396447,0.00028,2]
[329277580,1718211052199,-432.22396447,0.00028,2]
[329277583,1718211052211,-432.22396447,0.00028,2]
[329277585,1718211052223,-432.22396447,0.00028,2]
[329277586,1718211052233,-432.22396447,0.00028,2]
[329277589,1718211052246,-432.22396447,0.00028,2]
[329277590,1718211052257,-432.22396447,0.00028,2]
[329277592,1718211052268,-432.22396447,0.00028,2]
[329277594,1718211052280,-432.22396447,0.00028,2]
[329277595,1718211052291,-432.22396447,0.00028,2]
[329277597,1718211052302,-432.22396447,0.00028,2]
[329277599,1718211052313,-155.00128118,0.00028004,2]
[329277601,1718211052324,-181.77894766,0.00028028,2]
[329277603,1718211052335,-158.97201675,0.00028039,2]
[329277605,1718211052346,-161.7109971,0.00028039,2]
[329277606,1718211052357,-218.27178887,0.00028087,2]
[329277608,1718211052368,-150.0,0.00028118,2]
[329277610,1718211052378,-1002.92,0.0002816,2]
[329277612,1718211052389,-184.0,0.000282,2]
[329277613,1718211052399,-3000.0,0.000282,2]
[329277615,1718211052410,-3258.47484843,0.000282,2]
[329277617,1718211052421,-176.32587095,0.00028224,2]
[329277619,1718211052431,-467.86714762,0.00028233,2]
[329277621,1718211052442,-2662.19495916,0.00028233,2]
[329277623,1718211052457,-153.62018196,0.00028364,2]
[329277624,1718211052469,-155.00128118,0.00028366,2]
[329277626,1718211052480,-156.2003238,0.00028375,2]
[329277628,1718211052500,-808.62121511,0.0002839,2]
[329277629,1718211052512,-158.97201675,0.00028451,2]
[329277631,1718211052524,-1813.42559348,0.00028463,2]
[329277633,1718211052536,-155.00128122,0.0002851,2]
[329277635,1718211052547,-500.0,0.00028563,2]
[329277636,1718211052557,-246.97213485,0.00028563,2]
[329277638,1718211052568,-215.14,0.00028563,2]
[329277640,1718211052580,-157.43,0.00028563,2]
[329277642,1718211052590,-500.0,0.00028563,2]
[329277644,1718211052601,-500.0,0.00028563,2]
[329277646,1718211052612,-500.0,0.00028563,2]
[329277647,1718211052623,-500.0,0.00028563,2]
[329277649,1718211052634,-500.0,0.00028563,2]
[329277651,1718211052645,-500.0,0.00028563,2]
[329277653,1718211052656,-500.0,0.00028563,2]
[329277655,1718211052667,-500.0,0.00028563,2]
[329277657,1718211052678,-500.0,0.00028563,2]
[329277659,1718211052691,-500.0,0.00028563,2]
[329277661,1718211052712,-509.0376282,0.00028563,2]
[329277663,1718211052727,-500.0,0.00028563,2]
[329277664,1718211052741,-500.0,0.00028563,2]
[329277666,1718211052756,-500.0,0.00028563,2]
[329277668,1718211052773,-500.0,0.00028563,2]
[329277670,1718211052787,-500.0,0.00028563,2]
[329277672,1718211052797,-500.0,0.00028563,2]
[329277674,1718211052807,-519.16698308,0.00028563,2]
[329277675,1718211052818,-500.0,0.00028563,2]
[329277677,1718211052828,-500.0,0.00028563,2]
[329277679,1718211052839,-378.41592655,0.00028563,2]
[329277681,1718211052849,-500.0,0.00028563,2]
[329277683,1718211052859,-500.0,0.00028563,2]
[329277685,1718211052869,-510.03204715,0.00028563,2]
[329277687,1718211052879,-500.0,0.00028563,2]
[329277688,1718211052889,-507.21076286,0.00028563,2]
[329277690,1718211052900,-509.37177999,0.00028563,2]
[329277692,1718211052911,-500.0,0.00028563,2]
[329277694,1718211052922,-500.0,0.00028563,2]
[329277696,1718211052932,-500.0,0.00028563,2]
[329277697,1718211052942,-363.70711612,0.00028563,2]
[329277699,1718211052953,-637.0771954,0.00028563,2]
[329277701,1718211052963,-500.0,0.00028563,2]
[329277703,1718211052974,-506.99640169,0.00028563,2]
[329277705,1718211052985,-438.76,0.00028563,2]
[329277707,1718211052998,-476.47255224,0.00028563,2]
[329277709,1718211053008,-500.0,0.00028563,2]
[329277710,1718211053019,-606.07,0.00028563,2]
[329277712,1718211053029,-500.0,0.00028563,2]
[329277714,1718211053040,-375.68,0.00028563,2]
[329277716,1718211053050,-500.0,0.00028563,2]
[329277718,1718211053061,-508.00616376,0.00028563,2]
[329277720,1718211053072,-500.0,0.00028563,2]
[329277721,1718211053082,-508.98,0.00028563,2]
[329277723,1718211053092,-500.0,0.00028563,2]
[329277725,1718211053103,-500.0,0.00028563,2]
[329277727,1718211053113,-508.98172607,0.00028563,2]
[329277729,1718211053124,-527.1089148,0.00028563,2]
[329277731,1718211053134,-500.0,0.00028563,2]
[329277733,1718211053144,-509.16282362,0.00028563,2]
[329277735,1718211053154,-500.0,0.00028563,2]
[329277737,1718211053164,-500.0,0.00028563,2]
[329277738,1718211053174,-500.0,0.00028563,2]
[329277740,1718211053184,-500.0,0.00028563,2]
[329277742,1718211053194,-500.0,0.00028563,2]
[329277744,1718211053204,-500.0,0.00028563,2]
[329277746,1718211053214,-497.86624503,0.00028563,2]
[329277748,1718211053224,-500.0,0.00028563,2]
[329277749,1718211053234,-500.0,0.00028563,2]
[329277751,1718211053248,-502.89697178,0.00028563,2]
[329277753,1718211053258,-500.0,0.00028563,2]
[329277755,1718211053268,-500.0,0.00028563,2]
[329277757,1718211053279,-503.39023287,0.00028563,2]
[329277759,1718211053289,-500.0,0.00028563,2]
[329277761,1718211053299,-500.0,0.00028563,2]
[329277762,1718211053310,-500.0,0.00028563,2]
[329277763,1718211053321,-500.0,0.00028563,2]
[329277764,1718211053332,-500.0,0.00028563,2]
[329277765,1718211053341,-500.0,0.00028563,2]
[329277766,1718211053351,-500.0,0.00028563,2]
[329277767,1718211053361,-500.0,0.00028563,2]
[329277768,1718211053370,-500.0,0.00028563,2]
[329277769,1718211053380,-500.0,0.00028563,2]
[329277770,1718211053390,-500.0,0.00028563,2]
[329277771,1718211053400,-500.0,0.00028563,2]